[Event "DSOL-KO 2022"]
[Site "Germany"]
[Date "2022.05.13"]
[Round "2"]
[White "Seidel, Mika"]
[Black "Schoeneberg, Manfred"]
[Result "1/2-1/2"]
[ECO "E06"]
[WhiteElo "1896"]
[BlackElo "1742"]
[Annotator "NA RC COMBH"]
[PlyCount "26"]
[EventDate "2022.01.31"]
[EventType "team-tourn"]
[EventCountry "GER"]
[SourceTitle "playchess.com"]
[Source "ChessBase"]
[SourceQuality "1"]
[WhiteTeam "SK Johanneum Eppendorf I"]
[BlackTeam "TSG Taucha I"]
[TimeControl "2700+15"]

1. c4 Nf6 2. Nf3 e6 3. Nc3 d5 4. d4 Be7 5. g3 O-O 6. Bg2 c5 7. dxc5 dxc4 8. Qa4 Bxc5 9. Qxc4 Qc7 10. Be3 Na6 11. Bxc5 Qxc5 12. Qxc5 Nxc5 13. O-O Rb8 1/2-1/2

[Event "DSOL-KO 2022"]
[Site "Germany"]
[Date "2022.05.13"]
[Round "2"]
[White "Rath, Mark"]
[Black "Pottgiesser, Ulrich"]
[Result "1-0"]
[ECO "A03"]
[WhiteElo "1895"]
[BlackElo "1892"]
[Annotator "NA RC COMBH"]
[PlyCount "105"]
[EventDate "2022.01.31"]
[EventType "team-tourn"]
[EventCountry "GER"]
[SourceTitle "playchess.com"]
[Source "ChessBase"]
[SourceQuality "1"]
[WhiteTeam "SG Porz IV"]
[BlackTeam "SC Leinfelden II"]
[TimeControl "2700+15"]

1. f4 d5 2. e3 Nf6 3. Nf3 g6 4. b3 Bg7 5. Bb2 O-O 6. Nc3 e6 7. Be2 Re8 8. O-O c6 9. Ne5 Nbd7 10. a4 a6 11. Rb1 Rb8 12. d4 Qc7 13. Ba3 b5 14. axb5 cxb5 15. Bb2 b4 16. Na4 a5 17. Nxd7 Nxd7 18. Qc1 Bb7 19. c4 Rec8 20. c5 Bc6 21. Ra1 Bb5 22. Bxb5 Rxb5 23. Qc2 Qc6 24. Bc1 Nf6 25. Bd2 Ne4 26. Nb2 f5 27. Nd1 Ra8 28. Nf2 Nxf2 29. Kxf2 Ra7 30. Ra4 Rbb7 31. Rfa1 Qb5 32. Kf3 Bf6 33. Rg1 Bd8 34. Be1 Qc6 35. g4 Rf7 36. h3 Bc7 37. g5 Re7 38. Bxb4 Bb6 39. Ba3 Bc7 40. b4 Qb5 41. bxa5 Bxa5 42. Rb1 Qc6 43. Bc1 Bd8 44. Rxa7 Rxa7 45. Qb3 Qa6 46. Qb5 Qxb5 47. Rxb5 Kf8 48. Rb3 Ra1 49. Bd2 Rh1 50. Kg2 Rd1 51. Bb4 Ra1 52. Ra3 Ra2+ 53. Rxa2 1-0

[Event "DSOL-KO 2022"]
[Site "Germany"]
[Date "2022.05.09"]
[Round "2"]
[White "Mueller, Riyanna"]
[Black "Niese, Dieter"]
[Result "1-0"]
[ECO "C02"]
[WhiteElo "1889"]
[BlackElo "1870"]
[Annotator "NA COMBH"]
[PlyCount "27"]
[EventDate "2022.01.31"]
[EventType "team-tourn"]
[EventCountry "GER"]
[SourceTitle "playchess.com"]
[Source "ChessBase"]
[SourceQuality "1"]
[WhiteTeam "SC Landskrone"]
[BlackTeam "SV Königsbrück I"]
[TimeControl "2700+15"]

1. e4 e6 2. d4 d5 3. e5 c5 4. c3 Nc6 5. Nf3 Nge7 6. Na3 Ng6 7. Nc2 Be7 8. Be2 O-O 9. O-O a5 10. Be3 Bd7 11. Qd2 Rc8 12. Rac1 h6 13. b3 cxd4 14. cxd4 1-0

[Event "DSOL-KO 2022"]
[Site "Germany"]
[Date "2022.05.13"]
[Round "2"]
[White "Schulze, Lara"]
[Black "Kollars, Dmitrij"]
[Result "0-1"]
[ECO "C47"]
[WhiteElo "1876"]
[BlackElo "1940"]
[Annotator "TA"]
[PlyCount "110"]
[EventDate "2022.01.31"]
[EventType "team-tourn"]
[EventCountry "GER"]
[SourceTitle "playchess.com"]
[Source "ChessBase"]
[SourceQuality "1"]
[WhiteTeam "SV Werder Bremen I"]
[BlackTeam "SF Deizisau I"]
[TimeControl "2700+15"]

{[%evp 16,109,0,-1,4,15,6,10,27,7,105,118,112,114,112,116,105,122,125,98,92,87,90,91,114,89,98,98,97,97,148,145,160,151,150,150,166,55,55,58,144,144,161,161,162,164,163,155,174,174,276,110,193,183,185,180,264,193,185,195,215,210,368,296,286,278,265,229,268,265,256,157,193,165,274,139,121,95,106,49,55,49,162,28,158,147,144,0,64,55,61,0,14,12,14,-29999]} 1. e4 e5 2. Nf3 Nc6 3. Nc3 Nf6 4. d4 exd4 5. Nxd4 Bb4 6. Nxc6 bxc6 7. Bd3 d5 8. Bd2 O-O 9. O-O a5 {C47: Scotch Four Knights and Four Knights with 4 g3.} 10. Re1 (10. a3 {looks sharper.} Bxc3 11. Bxc3 dxe4 12. Bxf6 Qxf6 13. Bxe4 Qxb2 14. Qh5) 10... Bg4 11. Qc1 Re8 {The position is equal.} 12. a3 {[#]} dxe4 $146 (12... Bxc3 $11 {remains equal.} 13. Bxc3 dxe4 14. Bxf6 Qxf6 15. Bxe4 Re6) ({Predecessor:} 12... Bxc3 13. Bxc3 dxe4 14. Bxf6 Qxf6 15. Bxe4 Re6 16. Bd3 Rxe1+ 17. Qxe1 Qxb2 18. Rb1 Qa2 {0-1 (64) Karjakin,S (2743)-Mamedyarov,S (2767) Warsaw 2021}) 13. axb4 $16 {[%cal Rc3e4]} exd3 14. Rxe8+ Qxe8 15. bxa5 Bf5 16. cxd3 Bxd3 17. Na4 Bb5 18. Nc5 Qe2 19. Qe1 Qh5 20. Qe3 h6 21. h3 Nd5 22. Qd4 Qf5 ({Better is} 22... f6 23. a6 Ra7) 23. a6 {[%cal Ba5a6,Ba6a7][%mdl 32]} Nb6 24. Bc3 {[%csl Gc3][%cal Rd4g7]} f6 25. a7 Kh7 26. Qe4 (26. f3 $18) 26... Qxe4 $14 27. Nxe4 Kg6 (27... c5 $1 $14) 28. Bd4 $16 Nc8 29. f3 {[%cal Bf2f3,Bf3f4][%mdl 32]} Kf7 30. Kf2 Ke6 31. Bc5 Nb6 32. Nc3 {And now Re1+ would win.} Nd7 (32... Nc8 $142 33. Re1+ Kf7 34. Nxb5 cxb5) 33. b4 $2 (33. Re1+ $18 {and the rest is easy.} Kf5 34. Bd4) 33... Ne5 (33... Nxc5 $16 {was worth a try.} 34. bxc5 Kd7) 34. f4 Nd3+ 35. Ke3 Nb2 (35... Nxc5 $142 36. bxc5 Bc4) 36. Kf3 Nd3 37. g4 f5 38. Ke3 Nb2 $2 (38... Nxc5 39. bxc5 g6 40. gxf5+ Kxf5) 39. Ra2 Nc4+ 40. Kf3 {Strongly threatening Re2+.} Nd6 41. Ra1 g6 42. Re1+ Kd7 43. Rg1 Bd3 44. Rd1 Bc2 (44... Ba6 {keeps fighting.} 45. Na4 Ke6 46. Re1+ Ne4) 45. Rc1 (45. Rd2 $18 Bb3 46. gxf5 gxf5 47. b5) 45... Bb3 46. Ra1 Kc8 47. Ke3 (47. g5 $16 h5 48. Re1) 47... Kb7 $14 48. Kd4 Nc4 ({Black should play} 48... fxg4 $14 49. hxg4 Rf8) 49. Be7 (49. gxf5 $18 Rd8+ {[#]} 50. Nd5 $1 {[%mdl 512]} (50. Ke4 Bc2+ 51. Kf3 Bxf5 $15) 50... gxf5 51. a8=R (51. Kc3 cxd5 52. Kxb3 Ka8 $16) 51... Rxa8 52. Rxa8 Kxa8 53. Nxc7+ Kb8 54. Ne6) 49... Rxa7 (49... Nb6 $11) 50. Rxa7+ $16 Kxa7 $11 {KBN-KBN} 51. Kc5 (51. gxf5 $16 gxf5 52. Ne2) 51... Kb7 (51... fxg4 $11 52. hxg4 Kb7) 52. gxf5 $14 gxf5 53. Ne2 (53. Kd4 $1 $14) 53... Nd2 54. Ng3 {[%mdl 1024] White has compensation.} Be6 {[%cal Rd2b3]} 55. Bf8 $2 {[%mdl 8192] [#]} (55. Kd4 $11) 55... Nb3# {Weighted Error Value: White=0.44/Black=0.35} 0-1

[Event "DSOL-KO 2022"]
[Site "Germany"]
[Date "2022.05.11"]
[Round "2"]
[White "Lieberwirth, Kasimir"]
[Black "Mohaupt, Sascha"]
[Result "1-0"]
[ECO "B81"]
[WhiteElo "1865"]
[BlackElo "1920"]
[Annotator "TA"]
[PlyCount "119"]
[EventDate "2022.01.31"]
[EventType "team-tourn"]
[EventCountry "GER"]
[SourceTitle "playchess.com"]
[Source "ChessBase"]
[SourceQuality "1"]
[TimeControl "2700+15"]

{[%evp 12,119,28,8,100,66,89,72,116,103,104,104,129,112,102,85,96,108,109,55,48,66,88,97,122,80,109,104,124,103,133,133,121,129,142,149,267,260,250,79,245,161,152,133,202,194,198,206,212,171,182,0,0,-38,-39,-175,-170,-208,-103,-445,557,98,295,139,117,99,132,133,105,15,36,8,219,170,823,785,29952,29955,29963,29964,29962,29964,29964,29966,29970,29971,29970,29972,29972,29972,29972,29973,29973,29974,29975,29976,29976,29977,29977,29978,29978,29979,29979,29978,29978,29979,29978,29979,29981,247]} 1. e4 {Primel,D} c5 2. Nf3 e6 3. d4 cxd4 4. Nxd4 Nf6 5. Nc3 d6 6. g4 h6 7. h4 h5 {B81: Sicilian Scheveningen: Keres Attack.} (7... Nc6 $11 {keeps the balance.}) 8. gxh5 Nxh5 9. Bg5 Qb6 {[#] White is better.} 10. Be3 $146 {White is much more active. The black rooks are badly placed.} (10. Bb5+ Bd7 $14) ({Predecessor:} 10. Nb3 Bd7 11. Qd2 Nc6 12. O-O-O a6 13. Rg1 Ne5 14. Be3 Qc7 15. Be2 Nc4 16. Bxc4 Qxc4 {1-0 (41) Sohier,J (2255)-Trommsdorf,F (2102) Issy les Moulineaux 2007 EXT 2008 [Primel,D]}) 10... Qd8 11. Qd2 a6 12. O-O-O Nc6 13. Kb1 Qc7 14. Rg1 Nf6 15. Bg5 (15. f4 $16) 15... Bd7 $14 16. f4 $1 {[%cal Bf2f4,Bf4f5][%mdl 32]} Qb6 17. Nf3 Nh7 18. Bh3 {And now f5 would win.} Nxg5 19. Nxg5 {Hoping for f5.} Rxh4 20. f5 {[%cal Rf5e6]} Rxh3 21. Nxh3 Ne5 22. Rg3 {Against Nf3} Nc4 {[%csl Gc4][%cal Rb6b2]} 23. Qc1 Be7 (23... Rc8 $16 24. fxe6 fxe6) 24. fxe6 fxe6 25. e5 $2 (25. Rxg7 $18 {is the precise move to win.} Bf8 26. Rh7) 25... d5 $2 (25... O-O-O $16 {was necessary.}) 26. Rxg7 Bf8 {[%cal Be7f8,Bf8h6,Bh6e3][%mdl 32] [#]} 27. Rg6 {Nxd5 is the strong threat.} O-O-O {[#]} (27... Qa5 $16) 28. Nxd5 $1 $18 Qb5 29. Ne3 {Black must now prevent Nxc4.} Nxe5 30. Rg8 Bh6 31. Rxd8+ (31. Rg3 $18) 31... Kxd8 $11 32. Qd2 Qc5 33. Qd4 Bxe3 $19 (33... Qxd4 34. Rxd4 Nf3 35. Rd3 $16) 34. Qe4 Kc7 (34... Kc8 $19 {is more deadly. Strongly threatening ...Kb8.} 35. Nf4 Nc4) 35. b4 $2 {[%mdl 8192]} (35. Nf4 $17 {was the crucial defense.} Bxf4 36. Qxf4) 35... Qb5 $4 {[%mdl 8192]} (35... Qc3 $19 {and life is good for Black.} 36. Nf4 Bb5 37. Nxe6+ Kb6) 36. Qxe3 $2 (36. a4 $1 $18 {[%cal Ra4b5]} Qxa4 37. Qxe5+ (37. Qxe3 Qxb4+ 38. Qb3 Qxb3+ 39. cxb3 Nf3 $11) 37... Kc8 38. Qxe3 Qxb4+ 39. Kc1) 36... Nc4 $2 (36... Qxb4+ $16 {keeps fighting.} 37. Qb3 Qxb3+ 38. cxb3 (38. axb3 Nf3 $16) 38... Nf3) 37. Qc5+ (37. Qc3 $18 {and the rest is easy. Threatens to win with Rd4.} e5 38. Nf2) 37... Qxc5 $16 38. bxc5 {[%mdl 4096] Endgame KRN-KBN} Kc6 39. Ng5 e5 {Prevents Rd4.} 40. Ne4 ({White should try} 40. Kc1 $16) 40... Bf5 $11 41. Nd6 Ne3 {White leaves nothing to chance now.} (41... Bxc2+ $1 $11 42. Kxc2 Ne3+ 43. Kd2 Nxd1 44. Kxd1 Kxc5) 42. Rd2 Bxc2+ $2 (42... Be6 43. Re2 Ng4) 43. Rxc2 $18 Nxc2 44. Kxc2 {KN-K3P. White mates.} b6 45. Nc4 Kxc5 46. Nxe5 {KN-KPP} Kb4 47. Kb2 Ka4 48. Nd7 b5 49. Nc5+ Ka5 50. Kc3 Kb6 51. Nb3 a5 52. Kd4 a4 53. Nd2 b4 54. Kc4 Ka5 55. Kc5 a3 56. Nb3+ Ka4 57. Nc1 Ka5 58. Kc4 Ka4 59. Nd3 b3 60. Nc5+ $2 {Weighted Error Value: White=0.55/Black=0.59} (60. axb3+ {mates} Ka5 61. b4+ Kb6 62. Kb3 Kb5 63. Kxa3 Kc6 64. Ka4 Kd5 65. b5) 1-0

[Event "DSOL-KO 2022"]
[Site "Germany"]
[Date "2022.05.10"]
[Round "2"]
[White "Aminmansour, Bardia"]
[Black "Kliegl, Anton"]
[Result "1-0"]
[ECO "A22"]
[WhiteElo "1859"]
[BlackElo "1580"]
[Annotator "NA RC COMBH"]
[PlyCount "59"]
[EventDate "2022.01.31"]
[EventType "team-tourn"]
[EventCountry "GER"]
[SourceTitle "playchess.com"]
[Source "ChessBase"]
[SourceQuality "1"]
[WhiteTeam "SC Agon Neumünster"]
[BlackTeam "SK Kelheim II"]
[TimeControl "2700+15"]

{[%evp 8,59,18,32767,32767,32767,32767,32767,18,-37,32767,32767,32767,18,42,37,32767,91,106,79,125,106,110,128,115,106,155,159,32767,145,145,32767,157,93,92,32767,32767,32767,32767,32767,32767,173,403,32767,497,527,516,597,638,621,839,633,1860,2443]} 1. c4 e5 2. Nc3 Nf6 3. g3 d5 4. cxd5 Nxd5 5. Bg2 Nxc3 6. bxc3 c6 7. e3 Be6 8. Ne2 (8. Rb1 $11) 8... Nd7 9. O-O Nb6 10. d4 exd4 (10... f6 $11) 11. cxd4 Bc4 12. Qc2 Rc8 13. Re1 (13. Rd1 $142) 13... Bxe2 (13... Bb4 $142) 14. Qxe2 Be7 15. e4 O-O 16. Be3 Nd7 (16... Na4 $142) 17. Rab1 b5 18. d5 cxd5 19. Rxb5 dxe4 20. Bxa7 (20. Bxe4 $142 Nf6 21. Rd1 (21. Bxa7 Nxe4 22. Qxe4 Ba3 $16)) 20... f5 21. a4 Ra8 22. Qc4+ Kh8 23. Be3 Qc8 24. Qe6 Bc5 $2 (24... Qe8 {was called for.} 25. Rxf5 Rxa4 26. Bxe4 Bf6 27. Qxe8 Rxe8) 25. Rc1 Rf6 26. Qc4 ({Worse is} 26. Rcxc5 Rxe6 27. Rxc8+ Rxc8 $11) 26... Rc6 27. Bxc5 Ne5 28. Qd5 Nd3 29. Rc4 Rb8 30. Rxb8 $18 1-0

[Event "DSOL-KO 2022"]
[Site "Germany"]
[Date "2022.05.13"]
[Round "2"]
[White "Ibrahim, Amjad"]
[Black "Brungs, Sven"]
[Result "1-0"]
[ECO "A40"]
[WhiteElo "1855"]
[BlackElo "1718"]
[Annotator "NA RC COMBH"]
[PlyCount "125"]
[EventDate "2022.01.31"]
[EventType "team-tourn"]
[EventCountry "GER"]
[SourceTitle "playchess.com"]
[Source "ChessBase"]
[SourceQuality "1"]
[WhiteTeam "SC Leinfelden II"]
[BlackTeam "SG Porz IV"]
[TimeControl "2700+15"]

1. d4 e6 2. Bf4 c5 3. e3 Qb6 4. Na3 cxd4 5. Qxd4 Qxd4 6. exd4 Bxa3 7. bxa3 Nc6 8. Nf3 Nge7 9. c4 O-O 10. Bd3 b6 11. Kd2 Bb7 12. Bd6 Rfe8 13. Rab1 Na5 14. Ke2 Nf5 15. Bxf5 exf5+ 16. Kd3 Be4+ 17. Kc3 Bxb1 18. Rxb1 Re2 19. Bg3 f6 20. Nd2 Rc8 21. Rb5 g6 22. Kd3 Re6 23. Rd5 Re7 24. Bd6 Rf7 25. h4 Nb7 26. Bb4 Re8 27. Nb1 Re4 28. g3 Re6 29. a4 a5 30. Bd2 Rd6 31. Nc3 Re6 32. Nb5 Kf8 33. Nc7 Rc6 34. Nb5 Ke7 35. Bf4 Kd8 36. f3 Re7 37. g4 fxg4 38. fxg4 Re1 39. g5 f5 40. h5 Ra1 41. a3 Rf1 42. Be5 Re1 43. Bf6+ Ke8 44. hxg6 hxg6 45. Re5+ Rxe5 46. Bxe5 d6 47. Bf4 Kd7 48. Nc3 Nd8 49. Nd5 Nf7 50. Nf6+ Kc8 51. Nd5 Kd7 52. Nf6+ Kd8 53. Nd5 Nh8 54. Nf6 Ke7 55. Nd5+ Kd7 56. Nf6+ Kc8 57. Nd5 Kb7 58. Ne7 Rc7 59. Bxd6 Rd7 60. c5 bxc5 61. dxc5 Nf7 62. c6+ Kb6 63. cxd7 1-0

[Event "DSOL-KO 2022"]
[Site "Germany"]
[Date "2022.05.10"]
[Round "2"]
[White "Böhm, Aljoscha"]
[Black "Geisler, Andrae"]
[Result "1-0"]
[ECO "C56"]
[WhiteElo "1854"]
[BlackElo "1629"]
[Annotator "NA RC COMBH"]
[PlyCount "57"]
[EventDate "2022.01.31"]
[EventType "team-tourn"]
[EventCountry "GER"]
[SourceTitle "playchess.com"]
[Source "ChessBase"]
[SourceQuality "1"]
[WhiteTeam "SF Ochtendung I"]
[BlackTeam "SV Lurup Hamburg II"]
[TimeControl "2700+15"]

1. e4 e5 2. Nf3 Nc6 3. Bc4 Bc5 4. c3 Nf6 5. d4 exd4 6. O-O Nxe4 7. cxd4 Be7 8. d5 Na5 9. Bd3 Nf6 10. b4 Bxb4 11. Qa4 Nxd5 12. a3 b5 13. Bxb5 c6 $2 (13... Be7 {was necessary.}) 14. axb4 cxb5 15. Qxb5 Nc7 16. Re1+ Ne6 17. bxa5 O-O 18. Ba3 Re8 19. Nc3 Nc7 20. Rxe8+ Qxe8 21. Qc5 Ne6 22. Qb4 Ba6 23. Nd5 Rb8 24. Qd6 Bd3 25. Ne5 Rb1+ 26. Rxb1 Bxb1 27. Ne7+ Kh8 28. Qxd7 Qb8 29. Nxf7# 1-0

[Event "DSOL-KO 2022"]
[Site "Germany"]
[Date "2022.05.12"]
[Round "2"]
[White "Seer, Marcel"]
[Black "Goertz, Rinku Robert"]
[Result "0-1"]
[ECO "D50"]
[WhiteElo "1851"]
[BlackElo "1600"]
[Annotator "NA RC COMBH"]
[PlyCount "72"]
[EventDate "2022.01.31"]
[EventType "team-tourn"]
[EventCountry "GER"]
[SourceTitle "playchess.com"]
[Source "ChessBase"]
[SourceQuality "1"]
[WhiteTeam "SC Bad Salzdetfurth III"]
[BlackTeam "SC Bendorf"]
[TimeControl "2700+15"]

{[%evp 16,63,52,43,32767,32767,32767,32767,32767,29,32767,32767,32767,6,81,33,50,20,32767,15,8,12,15,0,0,32767,32767,-60,32767,-337,-385,-610,-643,-678,32767,32767,32767,-824,32767,32767,32767,266,238,259,238,-94,-96,-80,-93,-96]} 1. d4 d5 2. c4 e6 3. Nc3 Nf6 4. Bg5 dxc4 5. e3 a6 6. Bxc4 h6 {6...c5 is becoming the main line.} 7. Bxf6 Qxf6 8. Nf3 {[#]} Bd6 $146 ({Predecessor:} 8... Nd7 9. O-O b5 10. Bd3 Bb7 11. Ne4 Qd8 12. Rc1 Bd6 13. a4 bxa4 14. Qxa4 O-O {½-½ (26) Skreno,V (2130)-Balogh,T (2320) Slovakia 2019}) 9. O-O b5 10. Bd3 O-O 11. e4 e5 12. dxe5 (12. Nd5 $14 Qe6 13. a4 (13. dxe5 Bxe5 14. Rc1 c6 $14)) 12... Bxe5 13. Nxe5 Qxe5 14. Qc2 Qg5 (14... Bb7 $11) 15. Kh1 (15. a4 $16) 15... Bb7 16. f4 Qh4 17. Nd5 (17. a4 $5 {[%cal Ra4b5]}) 17... Bxd5 18. exd5 Nd7 $1 19. Qxc7 Nf6 20. d6 Ng4 21. h3 Nf2+ 22. Kg1 $2 ({White must play} 22. Rxf2 $1 $15 Qxf2 23. d7) 22... Nxd3 {Decoy} 23. f5 (23. d7 $142) 23... Qd4+ 24. Kh1 Rac8 25. Qe7 Rce8 26. Qc7 Rc8 27. Qe7 Rfe8 28. d7 Red8 29. dxc8=Q Rxc8 30. Rad1 $2 ({Better is} 30. Qe2 $18 Nxb2 $18 31. f6) 30... Nf2+ 31. Rxf2 Qxf2 $17 32. Qd7 Rc2 33. Qd5 Rxb2 34. Qa8+ Kh7 35. Qe4 Re2 36. Qd3 Qxg2# 0-1

[Event "DSOL-KO 2022"]
[Site "Germany"]
[Date "2022.05.13"]
[Round "2"]
[White "Wilczek, Mailo"]
[Black "Ortlepp, Konstanze"]
[Result "1-0"]
[ECO "C56"]
[WhiteElo "1846"]
[BlackElo "1646"]
[Annotator "NA RC COMBH"]
[PlyCount "57"]
[EventDate "2022.01.31"]
[EventType "team-tourn"]
[EventCountry "GER"]
[SourceTitle "playchess.com"]
[Source "ChessBase"]
[SourceQuality "1"]
[WhiteTeam "SF Greiz"]
[BlackTeam "SG Turm Leipzig II"]
[TimeControl "2700+15"]

1. e4 e5 2. Nf3 Nc6 3. d4 exd4 4. Bc4 Nf6 5. e5 d5 6. Bb5 Ne4 7. Nxd4 Bd7 8. Nxc6 bxc6 9. Bd3 Bc5 10. O-O Qh4 11. Qe1 O-O 12. Bxe4 dxe4 13. Qa5 Bb6 14. Qc3 Rae8 15. Be3 Qh5 16. Re1 Rxe5 17. Nd2 Ree8 18. Bxb6 cxb6 19. Rxe4 c5 20. h3 Bc6 21. Rxe8 Rxe8 22. Nf3 Bxf3 23. Qxf3 Qxf3 24. gxf3 h5 25. b3 Kf8 26. Kg2 g6 27. c3 g5 28. a4 Re3 29. fxe3 1-0

[Event "DSOL-KO 2022"]
[Site "Germany"]
[Date "2022.05.13"]
[Round "2"]
[White "Markus, Jan"]
[Black "Kammerlohr, Philipp"]
[Result "1/2-1/2"]
[ECO "B12"]
[WhiteElo "1844"]
[BlackElo "1922"]
[Annotator "TA"]
[PlyCount "129"]
[EventDate "2022.01.31"]
[EventType "team-tourn"]
[EventCountry "GER"]
[SourceTitle "playchess.com"]
[Source "ChessBase"]
[SourceQuality "1"]
[WhiteTeam "SG Porz IV"]
[BlackTeam "SC Leinfelden II"]
[TimeControl "2700+15"]

{[%evp 11,129,-12,0,-12,3,0,4,0,0,0,10,8,9,-5,13,0,6,-14,-11,-42,-36,-60,-51,-37,-53,-65,-70,-68,-68,-66,-46,-59,-53,-48,-66,-61,-34,-49,0,0,0,0,0,0,0,0,0,0,0,0,0,0,0,-39,0,-178,0,-218,0,0,0,0,13,11,11,0,9,0,0,0,12840,12163,12841,0,0,0,0,0,0,-12836,0,0,0,0,0,0,0,0,0,0,0,0,0,0,0,0,0,0,0,0,0,0,0,0,0,0,0,0,0,0,0,0,0,0,0,0,0,0,0,0]} 1. e4 c6 2. d4 d5 3. e5 Bf5 4. Bd3 Bxd3 5. Qxd3 e6 6. f4 Ne7 7. Be3 {B12: Caro-Kann: Advance Variation.} Nd7 8. Nf3 Nf5 9. Nbd2 Nxe3 10. Qxe3 {[#]} c5 $146 ({Predecessor:} 10... Be7 11. O-O O-O 12. c3 c5 13. Rfe1 Rb8 14. Nf1 Qc7 15. Ng3 a6 16. Rac1 a5 {1-0 (28) Zhao,I (1639)-Koneru,N (1619) Calgary 2015}) 11. c3 cxd4 12. cxd4 Bb4 13. O-O O-O 14. a3 Be7 15. b4 Nb6 16. Rac1 Rc8 17. Qd3 Qd7 18. Kh1 Rxc1 19. Rxc1 Rc8 20. Rc2 Rc7 21. g4 Qc8 22. Rxc7 Qxc7 23. f5 Qc1+ 24. Kg2 Nc4 (24... a6 $15) 25. Nxc4 $11 Qxc4 26. Qxc4 dxc4 {[%mdl 4096] Endgame KB-KN} 27. Ne1 b5 28. Kf3 Bg5 29. Ke4 Kf8 30. d5 Ke7 31. d6+ Kd7 32. Nc2 Bc1 33. Kd4 $2 (33. fxe6+ $11 {and White is okay.} fxe6 34. h4) 33... Kc6 $2 (33... Bb2+ $19 34. Ke4 exf5+ 35. gxf5 f6 36. exf6 gxf6) 34. h3 $2 (34. fxe6 $11 {and White stays safe.} fxe6 35. Kc3) 34... h6 $2 ({Black should play} 34... exf5 $19 35. gxf5 Bb2+ 36. Ke4 f6 37. exf6 Bxf6) 35. Kc3 {[#] Inhibits Bb2+. Threatens to win with fxe6.} a6 36. a4 Kd7 37. axb5 axb5 38. Nd4 Bf4 39. Nxb5 (39. fxe6+ {looks sharper.} fxe6 40. Nxb5 Bxe5+ 41. Kxc4 Bf4 42. Nd4) 39... Bxe5+ 40. Kxc4 Bxd6 $2 {[%mdl 8192]} (40... exf5 $11 41. gxf5 Kc6) 41. Nxd6 $18 Kxd6 $11 {KP-KP} 42. Kd4 $2 (42. fxe6 $18 Kxe6 43. Kc5) 42... e5+ 43. Ke4 f6 44. h4 Kc6 45. g5 $2 {[%mdl 8192]} (45. Kd3 $11) 45... Kb5 $2 (45... Kd6 $19 46. gxh6 gxh6) 46. gxh6 {The position is equal.} gxh6 47. Kd5 Kxb4 {[%cal Oe5e4] K3P-KPP} 48. Ke6 e4 49. Kxf6 {KPP-KPP} e3 {[#] Hoping for ...e2.} 50. Kg7 e2 (50... Ka3 $5) 51. f6 e1=Q (51... Ka3 $5) 52. f7 $1 Qe7 53. Kg8 Qe6 {Strongly threatening ...Qg6+.} 54. Kg7 {Prevents Qg6+.} Qg4+ 55. Kxh6 Qxh4+ 56. Kg7 Qg5+ 57. Kh8 Qf6+ 58. Kg8 Qg6+ 59. Kh8 $1 (59. Kf8 {leads to mate.} Kc5 60. Ke7 Qd6+ 61. Ke8 Qe6+ 62. Kf8 Kd6 63. Kg7 Qe5+ 64. Kh7 Qh5+ 65. Kg8 Qg5+ 66. Kh8 Ke7 67. f8=R Kxf8 68. Kh7 Qh5#) 59... Qh5+ 60. Kg8 Qg4+ 61. Kh8 Qc8+ 62. Kg7 Qd7 63. Kg8 Qe7 64. f8=Q Qxf8+ 65. Kxf8 {Weighted Error Value: White=0.40/Black=0.21 (precise)} 1/2-1/2

[Event "DSOL-KO 2022"]
[Site "Germany"]
[Date "2022.05.09"]
[Round "2"]
[White "Dietz, Andrae"]
[Black "Weis, Constantin"]
[Result "0-1"]
[ECO "B22"]
[WhiteElo "1841"]
[BlackElo "1882"]
[Annotator "NA COMBH"]
[PlyCount "100"]
[EventDate "2022.01.31"]
[EventType "team-tourn"]
[EventCountry "GER"]
[SourceTitle "playchess.com"]
[Source "ChessBase"]
[SourceQuality "1"]
[WhiteTeam "SC Wittstock I"]
[BlackTeam "SC Caissa Falkensee I"]
[TimeControl "2700+15"]

1. e4 c5 2. Nf3 d6 3. c3 e6 4. d4 cxd4 5. cxd4 d5 6. exd5 exd5 7. Nc3 Nf6 8. Bb5+ Bd7 9. O-O Bxb5 10. Re1+ Be7 11. Nxb5 a6 12. Nc3 Nc6 13. Bf4 O-O 14. Rc1 Rc8 15. Na4 Ne4 16. a3 Bf6 17. b4 a5 18. b5 Ne7 19. Qb3 Rxc1 20. Rxc1 Nf5 21. Qd3 Nfd6 22. Nc5 Re8 23. a4 b6 24. Nb3 Nc4 25. Qc2 (25. h3 $11) 25... Qe7 26. h3 Qb4 27. Qa2 Nc3 28. Qc2 Nxa4 $2 (28... Ne2+ $19 29. Kh2 Nxf4) 29. Nbd2 Qxb5 30. Nxc4 dxc4 31. Rb1 ({But not} 31. Qxc4 $2 Qxc4 32. Rxc4 b5 $19) (31. Be5 $142) 31... Qd7 32. Qxc4 Rc8 33. Qb5 $2 (33. Qa6 $17) 33... Qxb5 34. Rxb5 h6 35. d5 Nc3 36. Rxb6 Ne2+ 37. Kh2 Nxf4 38. d6 Rd8 39. Ra6 Bc3 40. Nh4 g6 41. Kg3 Ne6 42. f4 Bb4 43. f5 $19 Bxd6+ 44. Rxd6 Rxd6 45. fxe6 Rxe6 46. Nf3 Re3 47. Kf2 Rxf3+ 48. gxf3 Kg7 49. Ke3 Kf6 50. Kd4 Kf5 0-1

[Event "DSOL-KO 2022"]
[Site "Germany"]
[Date "2022.05.10"]
[Round "2"]
[White "Plischki, Sebastian"]
[Black "Perestjuk, Marko"]
[Result "1-0"]
[ECO "E05"]
[WhiteElo "1841"]
[BlackElo "1675"]
[Annotator "NA RC COMBH"]
[PlyCount "55"]
[EventDate "2022.01.31"]
[EventType "team-tourn"]
[EventCountry "GER"]
[SourceTitle "playchess.com"]
[Source "ChessBase"]
[SourceQuality "1"]
[WhiteTeam "SK Rinteln I"]
[BlackTeam "SC Zitadelle Spandau"]
[TimeControl "2700+15"]

1. d4 d5 2. c4 e6 3. Nf3 Nf6 4. Nc3 Be7 5. g3 dxc4 6. Bg2 a6 7. Ne5 Nbd7 8. Nxc4 c5 9. O-O O-O 10. Bf4 Ra7 11. dxc5 Nxc5 12. Qxd8 Rxd8 13. Bb8 Ra8 14. Bc7 Bd7 15. Bxd8 Rxd8 16. Rfd1 Rb8 17. Rac1 Kf8 18. h3 h5 19. Kf1 g6 20. f4 Kg7 $18 21. Bh1 Kf8 22. Bf3 Kg7 23. Kg2 Be8 24. Nd6 Bd7 25. e4 b6 26. e5 Ne8 27. b4 Bxd6 28. bxc5 1-0